fUST/lending_fUST_20250522
["ID","MTS","AMOUNT","RATE_DAILY","PERIOD"]
[361905686,1747879854060,-280.96627748,0.00024657,2]
[361905687,1747879854069,-602.46,0.00024657,2]
[361905688,1747879854078,-430.0,0.00024657,2]
[361905689,1747879854088,-210.57423688,0.00024658,2]
[361905690,1747879854097,-7927.21556162,0.0002466,7]
[361905691,1747879854106,-7927.21556162,0.0002466,7]
[361905692,1747879854115,-151.0,0.000247,7]
[361905693,1747879854124,-235.791171,0.000247,7]
[361905694,1747879854134,-235.791171,0.000247,7]
[361905695,1747879854143,-6398.93,0.000247,7]
[361905696,1747879854152,-14334.52,0.000247,2]
[361905697,1747879854161,-8023.83,0.000247,7]
[361905698,1747879854170,-1000.0,0.00024701,2]
[361905699,1747879854179,-635.83216067,0.00024702,2]
[361905700,1747879854188,-155.84756444,0.00024712,2]
[361905701,1747879854197,-1243.96884507,0.00024728,11]
[361905702,1747879854206,-192971.5422419,0.0002474,2]
[361905703,1747879854215,-807.53574278,0.0002474,2]
[361905704,1747879854227,-151.0,0.0002474,7]
[361905705,1747879854236,-151.0,0.0002474,7]
[361905706,1747879854246,-151.0,0.0002474,7]
[361905707,1747879854256,-151.0,0.0002474,7]
[361905708,1747879854269,-151.0,0.0002474,7]
[361905709,1747879854279,-241.06975,0.0002474,7]
[361905710,1747879854289,-151.0,0.0002474,7]
[361905711,1747879854298,-152.207674,0.0002474,7]
[361905712,1747879854309,-151.0,0.0002474,7]
[361905713,1747879854319,-705.336637,0.0002474,7]
[361905714,1747879854328,-705.336637,0.0002474,7]
[361905715,1747879854337,-151.571937,0.0002474,7]
[361905716,1747879854348,-253.921792,0.0002474,7]
[361905717,1747879854358,-151.0,0.0002474,7]
[361905718,1747879854367,-253.921792,0.0002474,7]
[361905719,1747879854376,-151.0,0.0002474,7]
[361905720,1747879854386,-450.740158,0.0002474,7]
[361905721,1747879854395,-450.740158,0.0002474,7]
[361905722,1747879854404,-151.653499,0.0002474,7]
[361905723,1747879854414,-151.0,0.0002474,7]
[361905724,1747879854423,-151.0,0.0002474,7]
[361905725,1747879854435,-151.0,0.0002474,7]
[361905726,1747879854444,-511.165456,0.0002474,7]
[361905727,1747879854453,-511.165456,0.0002474,7]
[361905728,1747879854463,-151.0,0.0002474,7]
[361905729,1747879854473,-565.106988,0.0002474,7]
[361905730,1747879854486,-565.106988,0.0002474,7]
[361905731,1747879854496,-151.0,0.0002474,7]
[361905732,1747879854506,-151.0,0.0002475,7]
[361905733,1747879854515,-235.791171,0.0002475,7]
[361905734,1747879854525,-235.791171,0.0002475,7]
[361905735,1747879854537,-500.0,0.00024773,2]
[361905736,1747879854547,-1000.0,0.000248,2]
[361905737,1747879854557,-150.0,0.000248,2]
[361905738,1747879854566,-1223.7273391,0.000248,2]
[361905739,1747879854575,-199930.0648808,0.000248,2]
[361905740,1747879854891,-430.0,0.00022739,2]
[361905741,1747879854901,-436.62247473,0.00023013,2]
[361905742,1747879854911,-404.0,0.00024344,2]
[361905743,1747879854920,-276.16352581,0.000248,2]
[361905744,1747879854932,-1056.20556976,0.000248,2]
[361905745,1747879854943,-25375.40761318,0.000248,2]
[361905746,1747879855141,-2357.51650848,0.000248,2]
[361905747,1747879855153,-2034.80972883,0.000248,2]
[361905748,1747879855169,-104572.74009214,0.000248,2]
[361905749,1747879855178,-151.983621,0.000248,7]
[361905750,1747879855187,-150.0,0.00024802,2]
[361905751,1747879855197,-960.0,0.00024802,2]
[361905752,1747879855206,-1395.649933,0.0002482,5]
[361905753,1747879855215,-1000.0,0.0002484,5]
[361905754,1747879855224,-1000.0,0.0002486,5]
[361905755,1747879855236,-202.21487904,0.00024873,2]
[361905756,1747879855245,-500.80269898,0.00024873,2]
[361905757,1747879855254,-161.14752752,0.00024874,10]
[361905758,1747879855267,-155.84756444,0.00024877,2]
[361905759,1747879855276,-1000.0,0.0002488,5]
[361905760,1747879855285,-17663.3109431,0.0002489,2]
[361905761,1747879855295,-151.0,0.000249,7]
[361905762,1747879855305,-235.791171,0.000249,7]
[361905763,1747879855315,-235.791171,0.000249,7]
[361905764,1747879855328,-151.0,0.000249,7]
[361905765,1747879855349,-151.0,0.000249,7]
[361905766,1747879855365,-1000.0,0.000249,5]
[361905767,1747879855383,-151.0,0.000249,2]
[361905768,1747879855402,-151.0,0.000249,7]
[361905769,1747879855421,-213.340195,0.000249,2]
[361905770,1747879855440,-151.0,0.000249,7]
[361905771,1747879855457,-151.0,0.000249,7]
[361905772,1747879855474,-151.0,0.000249,7]
[361905773,1747879855492,-151.0,0.000249,7]
[361905774,1747879855509,-1113.123167,0.000249,7]
[361905775,1747879855523,-276.279788,0.000249,7]
[361905776,1747879855539,-1501.859909,0.000249,7]
[361905777,1747879855557,-151.0,0.000249,7]
[361905778,1747879855575,-322.885713,0.000249,7]
[361905779,1747879855594,-1501.859909,0.000249,7]
[361905780,1747879855609,-151.0,0.000249,7]
[361905781,1747879855621,-322.885713,0.000249,7]
[361905782,1747879855640,-151.0,0.000249,7]
[361905783,1747879855656,-151.0,0.000249,7]
[361905784,1747879855670,-151.0,0.000249,7]
[361905785,1747879855686,-151.0,0.000249,7]
[361905786,1747879855699,-151.0,0.000249,7]
[361905787,1747879855712,-151.0,0.000249,7]
[361905788,1747879855728,-151.0,0.000249,7]
[361905789,1747879855742,-151.0,0.000249,7]
[361905790,1747879855756,-151.0,0.000249,7]
[361905791,1747879855770,-151.0,0.000249,7]
[361905792,1747879855785,-5605.57088557,0.000249,2]
[361905793,1747879855800,-151.0,0.000249,7]
[361905794,1747879855814,-705.336637,0.000249,7]
[361905795,1747879855828,-705.336637,0.000249,7]
[361905796,1747879855842,-253.921792,0.000249,7]
[361905797,1747879855858,-151.0,0.000249,7]
[361905798,1747879855873,-253.921792,0.000249,7]
[361905799,1747879855887,-151.0,0.000249,7]
[361905800,1747879855903,-450.740158,0.000249,7]
[361905801,1747879855918,-450.740158,0.000249,7]
[361905802,1747879855933,-425427.32815853,0.000249,2]
[361905808,1747880292316,165.76944,0.00013699,2]
[361905818,1747880745134,-282.86692877,0.00020544,2]
[361905823,1747880828103,-168.5325505,0.00020338,2]
[361905828,1747880840084,-4831.4674495,0.00020338,2]
[361905829,1747880840107,-3094.88708783,0.00020544,2]
[361905830,1747880840132,-253.602677,0.00020625,2]
[361905831,1747880840155,-387.411525,0.00020885,2]
[361905832,1747880840177,-300.0,0.00020899,2]
[361905833,1747880840203,-1343.25883,0.000209,4]
[361905834,1747880847269,-227.09708679,0.000209,4]
[361905835,1747880847293,-4.61776429,0.00020987,2]
[361905836,1747880854110,-174.33129748,0.00020987,2]
[361905840,1747880899122,11061.5557583,0.000125,2]
[361905851,1747880924559,826.3059314,0.0002,120]
[361905853,1747880946094,-960.004334,0.000165,2]
[361905854,1747880949185,-40.26742625,0.000165,2]
[361905855,1747880949207,-300.0,0.00020605,2]
[361905856,1747880949231,-12581.98500284,0.00020606,2]
[361905857,1747880949258,-1251.58652806,0.00020606,2]
[361905858,1747880949279,-5095.20618185,0.00020646,2]
[361905859,1747880951156,-4802.26196256,0.00020646,2]
[361905883,1747881032170,-394.65434009,0.00020357,2]
[361905885,1747881032180,-102.53185559,0.00020646,2]
[361905887,1747881032189,-2695.89131594,0.00020987,2]
[361905889,1747881032199,-500.0,0.00021,5]
[361905890,1747881032208,-300.0,0.00021199,2]
[361905891,1747881032218,-502.0,0.000212,5]
[361905892,1747881032227,-264.1006951,0.00021237,2]
[361905893,1747881032237,-243.59484243,0.00021257,2]
[361905894,1747881032247,-500.0,0.000213,5]
[361905895,1747881032256,-500.0,0.000215,5]
[361905896,1747881032266,-500.0,0.000215,3]
[361905897,1747881032276,-500.0,0.000216,5]
[361905898,1747881032285,-332.0,0.000217,5]
[361905899,1747881032295,-500.0,0.000218,5]
[361905900,1747881032304,-602.85811685,0.00021812,2]
[361905901,1747881032313,-300.0,0.00021816,2]
[361905902,1747881032323,-734.23640346,0.00021817,2]
[361905903,1747881032332,-328.0,0.0002185,3]
[361905904,1747881032341,-2001.5788726,0.000219,5]
[361905905,1747881032351,-1518.01071938,0.000219,6]
[361905906,1747881032360,-500.0,0.00021916,2]
[361905907,1747881032369,-500.0,0.00021916,2]
[361905908,1747881032378,-473.99126188,0.00021916,2]
[361905909,1747881032387,-500.0,0.00021916,2]
[361905910,1747881032396,-500.0,0.00021916,2]
[361905911,1747881032405,-500.0,0.00021916,2]
[361905912,1747881032414,-500.0,0.00021916,2]
[361905913,1747881032423,-639.80530699,0.00021916,2]
[361905914,1747881032432,-431.62831656,0.00021917,4]
[361905915,1747881032442,-430.0,0.00021917,2]
[361905916,1747881032451,-430.0,0.00021917,2]
[361905917,1747881032460,-394.05846507,0.00021917,2]
[361905918,1747881032469,-430.0,0.00021917,2]
[361905919,1747881032479,-356.31008823,0.00021917,2]
[361905920,1747881032488,-400.0,0.00021917,2]
[361905921,1747881032497,-430.0,0.00021917,2]
[361905922,1747881032508,-430.0,0.00021917,2]
[361905923,1747881032518,-559.2477692,0.00021917,2]
[361905924,1747881032528,-448.00682734,0.00021917,2]
[361905925,1747881032537,-430.0,0.00021917,2]
[361905926,1747881032547,-437.77432611,0.00021917,2]
[361905927,1747881032556,-431.89187393,0.00021917,2]
[361905928,1747881032565,-436.58985711,0.00021917,2]
[361905929,1747881032575,-445.54955465,0.00021917,2]
[361905930,1747881032584,-441.10456723,0.00021917,2]
[361905931,1747881032593,-430.0,0.00021917,2]
[361905932,1747881032602,-430.0,0.00021917,2]
[361905933,1747881032612,-434.68770132,0.00021917,2]
[361905934,1747881032623,-487.61453431,0.00021917,2]
[361905935,1747881032637,-430.0,0.00021917,2]
[361905936,1747881032646,-430.0,0.00021917,2]
[361905937,1747881032657,-197.34155678,0.00021917,2]
[361905938,1747881032668,-430.0,0.00021917,2]
[361905939,1747881032679,-430.0,0.00021917,2]
[361905940,1747881032689,-430.0,0.00021917,2]
[361905941,1747881032698,-430.0,0.00021917,2]
[361905942,1747881032709,-442.88201686,0.00021917,2]
[361905943,1747881032720,-430.0,0.00021917,2]
[361905944,1747881032730,-430.0,0.00021917,2]
[361905945,1747881032740,-430.0,0.00021917,2]
[361905946,1747881032750,-430.0,0.00021917,2]
[361905947,1747881032761,-473.75495329,0.00021917,2]
[361905948,1747881032771,-477.45820481,0.00021917,2]
[361905949,1747881032781,-430.0,0.00021917,2]
[361905950,1747881032792,-430.0,0.00021917,2]
[361905951,1747881032802,-430.0,0.00021917,2]
[361905952,1747881032812,-259.65361554,0.00021917,2]
[361905953,1747881032822,-430.0,0.00021917,2]
[361905954,1747881032832,-319.97345531,0.00021917,2]
[361905955,1747881032842,-287.32372728,0.00021917,2]
[361905956,1747881032852,-430.0,0.00021917,2]
[361905957,1747881032862,-430.0,0.00021917,2]
[361905958,1747881032872,-430.0,0.00021917,2]
[361905959,1747881032882,-430.0,0.00021917,2]
[361905960,1747881032891,-430.71151653,0.00021917,2]
[361905961,1747881032901,-430.0,0.00021917,2]
[361905962,1747881032910,-431.78740853,0.00021917,2]
[361905963,1747881032920,-430.0,0.00021917,2]
[361905964,1747881032930,-430.0,0.00021917,2]
[361905965,1747881032939,-431.20498079,0.00021917,2]
[361905966,1747881032948,-430.0,0.00021917,2]
[361905967,1747881032958,-430.0,0.00021917,2]
[361905968,1747881032968,-193.09046034,0.00021917,2]
[361905969,1747881032978,-430.0,0.00021917,2]
[361905970,1747881032988,-430.0,0.00021917,2]
[361905971,1747881032997,-430.0,0.00021917,2]
[361905972,1747881033007,-430.0,0.00021917,2]
[361905973,1747881033016,-430.0,0.00021917,2]
[361905974,1747881033027,-430.0,0.00021917,2]
[361905975,1747881033037,-430.0,0.00021917,2]
[361905976,1747881033046,-430.0,0.00021917,2]
[361905977,1747881033057,-430.0,0.00021917,2]
[361905978,1747881033066,-430.0,0.00021917,2]
[361905979,1747881033076,-430.0,0.00021917,2]
[361905980,1747881033086,-430.0,0.00021917,2]
[361905981,1747881033096,-430.0,0.00021917,2]
[361905982,1747881033106,-430.0,0.00021917,2]
[361905983,1747881033116,-246.52332175,0.00021917,2]
[361905984,1747881033126,-472.32617552,0.00021917,2]
[361905985,1747881033136,-430.0,0.00021917,2]
[361905986,1747881033146,-430.0,0.00021917,2]
[361905987,1747881033156,-483.4861987,0.00021917,2]
[361905988,1747881033166,-354.20970775,0.00021917,2]
[361905989,1747881033177,-430.0,0.00021917,2]
[361905990,1747881033187,-372.8705167,0.00021917,2]
[361905991,1747881033197,-344.93519171,0.00021917,2]
[361905992,1747881033206,-430.0,0.00021917,2]
[361905993,1747881033216,-371.69700476,0.00021917,2]
[361905994,1747881033225,-366.02113348,0.00021917,2]
[361905995,1747881033235,-430.0,0.00021917,2]
[361905996,1747881033245,-553.42206027,0.00021917,2]
[361905997,1747881033255,-430.0,0.00021917,2]
[361905998,1747881033266,-430.0,0.00021917,2]
[361905999,1747881033277,-430.0,0.00021917,2]
[361906000,1747881033287,-430.0,0.00021917,2]
[361906001,1747881033297,-433.94535726,0.00021917,2]
[361906002,1747881033307,-430.0,0.00021917,2]
[361906003,1747881033317,-430.0,0.00021917,2]
[361906004,1747881033327,-430.0,0.00021917,2]
[361906005,1747881033338,-430.0,0.00021917,2]
[361906006,1747881033348,-430.0,0.00021917,2]
[361906007,1747881033478,-430.0,0.00021917,2]
[361906008,1747881033488,-430.0,0.00021917,2]
[361906009,1747881033499,-430.0,0.00021917,2]
[361906010,1747881033509,-171.97796665,0.00021917,2]
[361906011,1747881033518,-470.0,0.00021917,2]
[361906012,1747881033530,-430.0,0.00021917,2]
[361906013,1747881033539,-430.0,0.00021917,2]
[361906014,1747881033550,-430.0,0.00021917,2]
[361906015,1747881033560,-433.6863415,0.00021917,2]
[361906016,1747881033570,-430.0,0.00021917,2]
[361906017,1747881033580,-430.0,0.00021917,2]
[361906018,1747881033590,-334.73858599,0.00021917,2]
[361906019,1747881033599,-430.0,0.00021917,2]
[361906020,1747881033610,-430.0,0.00021917,2]
[361906021,1747881033623,-300.25979374,0.00021917,2]
[361906022,1747881033634,-430.0,0.00021917,2]
[361906023,1747881033644,-430.0,0.00021917,2]
[361906024,1747881033654,-270.45206679,0.00021917,2]
[361906025,1747881033665,-430.0,0.00021917,2]
[361906026,1747881033674,-430.0,0.00021917,2]
[361906027,1747881033684,-430.0,0.00021917,2]
[361906028,1747881033694,-266.85781206,0.00021917,2]
[361906029,1747881033703,-430.0,0.00021917,2]
[361906030,1747881033714,-285.38326117,0.00021917,2]
[361906031,1747881033724,-430.0,0.00021917,2]
[361906032,1747881033734,-430.0,0.00021917,2]
[361906033,1747881033744,-430.0,0.00021917,2]
[361906034,1747881033753,-430.0,0.00021917,2]
[361906035,1747881033763,-430.0,0.00021917,2]
[361906036,1747881033776,-382.84073656,0.00021917,2]
[361906037,1747881033785,-417.35940354,0.00021917,2]
[361906038,1747881033795,-430.0,0.00021917,2]
[361906039,1747881033804,-470.00728699,0.00021917,2]
[361906040,1747881033814,-436.24743075,0.00021917,2]
[361906041,1747881033824,-430.0,0.00021917,2]
[361906042,1747881033833,-430.0,0.00021917,2]
[361906043,1747881033843,-430.0,0.00021917,2]
[361906044,1747881033852,-368.1701747,0.00021917,2]
[361906045,1747881033862,-223.45947169,0.00021917,2]
[361906046,1747881033871,-430.0,0.00021917,2]
[361906047,1747881033882,-434.68301146,0.00021917,2]
[361906048,1747881033892,-424.85795622,0.00021917,2]
[361906049,1747881033902,-479.53514716,0.00021917,2]
[361906050,1747881033912,-225.18929406,0.00021917,2]
[361906051,1747881033922,-430.0,0.00021917,2]
[361906052,1747881033931,-430.0,0.00021917,2]
[361906053,1747881033940,-430.0,0.00021917,2]
[361906054,1747881033951,-440.0,0.00021917,2]
[361906055,1747881033962,-466.73568256,0.00021917,2]
[361906056,1747881033972,-430.0,0.00021917,2]
[361906057,1747881033982,-435.09900428,0.00021917,2]
[361906058,1747881033993,-431.79373231,0.00021917,2]
[361906059,1747881034003,-430.0,0.00021917,2]
[361906060,1747881034014,-431.36686187,0.00021917,2]
[361906061,1747881034027,-430.0,0.00021917,2]
[361906062,1747881034037,-425.44012246,0.00021917,2]
[361906063,1747881034048,-433.56235241,0.00021917,2]
[361906064,1747881034058,-425.66259534,0.00021917,2]
[361906065,1747881034068,-294.49944318,0.00021917,2]
[361906066,1747881034080,-433.4467067,0.00021917,2]
[361906067,1747881034092,-434.69095538,0.00021917,2]
[361906068,1747881034102,-430.0,0.00021917,2]
[361906069,1747881034113,-388.1005322,0.00021917,2]
[361906070,1747881034123,-430.0,0.00021917,2]
[361906071,1747881034133,-321.36695194,0.00021917,2]
[361906072,1747881034144,-436.18003424,0.00021917,2]
[361906073,1747881034154,-427.52692979,0.00021917,2]
[361906074,1747881034163,-437.48160388,0.00021917,2]
[361906075,1747881034172,-379.37469299,0.00021917,2]
[361906076,1747881034182,-430.0,0.00021917,2]
[361906077,1747881034191,-430.0,0.00021917,2]
[361906078,1747881034201,-430.0,0.00021917,2]
[361906079,1747881034212,-437.51970721,0.00021917,2]
[361906080,1747881034222,-430.0,0.00021917,2]
[361906081,1747881034232,-483.80001081,0.00021917,2]
[361906082,1747881034242,-430.0,0.00021917,2]
[361906083,1747881034252,-404.53360833,0.00021917,2]
[361906084,1747881034262,-430.0,0.00021917,2]
[361906085,1747881034275,-430.0,0.00021917,2]
[361906086,1747881034285,-430.0,0.00021917,2]
[361906087,1747881034295,-430.0,0.00021917,2]
[361906088,1747881034305,-430.0,0.00021917,2]
[361906089,1747881034316,-427.82210596,0.00021917,2]
[361906090,1747881034325,-430.0,0.00021917,2]
[361906091,1747881034335,-442.45,0.00021917,2]
[361906092,1747881034346,-430.0,0.00021917,2]
[361906093,1747881034356,-430.0,0.00021917,2]
[361906094,1747881034366,-477.63102278,0.00021917,2]
[361906095,1747881034375,-430.0,0.00021917,2]
[361906096,1747881034385,-431.86422072,0.00021917,2]
[361906097,1747881034395,-430.0,0.00021917,2]
[361906098,1747881034405,-430.0,0.00021917,2]
[361906099,1747881034415,-430.0,0.00021917,2]
[361906100,1747881034424,-430.0,0.00021917,2]
[361906101,1747881034435,-430.0,0.00021917,2]
[361906102,1747881034445,-482.75039904,0.00021917,2]
[361906103,1747881034455,-430.0,0.00021917,2]
[361906104,1747881034465,-430.0,0.00021917,2]
[361906105,1747881034475,-430.0,0.00021917,2]
[361906106,1747881034485,-430.0,0.00021917,2]
[361906107,1747881034494,-426.61423961,0.00021917,2]
[361906108,1747881034504,-430.0,0.00021917,2]
[361906109,1747881034513,-345.63498649,0.00021917,2]
[361906110,1747881034524,-430.0,0.00021917,2]
[361906111,1747881034534,-435.82268584,0.00021917,2]
[361906112,1747881034544,-303.59058082,0.00021917,2]
[361906113,1747881034553,-430.0,0.00021917,2]
[361906114,1747881034563,-430.0,0.00021917,2]
[361906115,1747881034574,-430.0,0.00021917,2]
[361906116,1747881034583,-430.0,0.00021917,2]
[361906117,1747881034593,-430.0,0.00021917,2]
[361906118,1747881034602,-566.61255172,0.00021917,2]
[361906119,1747881034612,-471.35,0.00021917,2]
[361906120,1747881034623,-430.0,0.00021917,2]
[361906121,1747881034635,-575.42859488,0.00021917,2]
[361906122,1747881034645,-532.02455839,0.00021917,2]
[361906123,1747881034655,-430.0,0.00021917,2]
[361906124,1747881034665,-430.0,0.00021917,2]
[361906125,1747881034674,-431.20874298,0.00021917,2]
[361906126,1747881034684,-430.0,0.00021917,2]
[361906127,1747881034693,-430.0,0.00021917,2]
[361906128,1747881034703,-431.31275955,0.00021917,2]
[361906129,1747881034714,-374.25113867,0.00021917,2]
[361906130,1747881034724,-550.58334855,0.00021917,2]
[361906131,1747881034734,-433.80032396,0.00021917,2]
[361906132,1747881034743,-430.0,0.00021917,2]
[361906133,1747881034753,-431.05122895,0.00021917,2]
[361906134,1747881034762,-432.8847349,0.00021917,2]
[361906135,1747881034774,-431.74984494,0.00021917,2]
[361906136,1747881034784,-433.05860703,0.00021917,2]
[361906137,1747881034793,-435.18775137,0.00021917,2]
[361906138,1747881034804,-430.0,0.00021917,2]
[361906139,1747881034814,-430.0,0.00021917,2]
[361906140,1747881034824,-435.8782649,0.00021917,2]
[361906141,1747881034833,-430.0,0.00021917,2]
[361906142,1747881034843,-432.01896809,0.00021917,2]
[361906143,1747881034854,-430.0,0.00021917,2]
[361906144,1747881034864,-404.56317864,0.00021917,2]
[361906145,1747881034874,-430.0,0.00021917,2]
[361906146,1747881034883,-242.05602313,0.00021917,2]
[361906147,1747881034893,-430.0,0.00021917,2]
[361906148,1747881034903,-430.0,0.00021917,2]
[361906149,1747881034912,-452.72055257,0.00021917,2]
[361906150,1747881034922,-430.0,0.00021917,2]
[361906151,1747881034931,-430.0,0.00021917,2]
[361906152,1747881034941,-430.0,0.00021917,2]
[361906153,1747881034952,-430.0,0.00021917,2]
[361906154,1747881034961,-343.32827128,0.00021917,2]
[361906155,1747881034971,-398.27359063,0.00021917,2]
[361906156,1747881034981,-431.29453584,0.00021917,2]
[361906157,1747881034991,-402.47418272,0.00021917,2]
[361906158,1747881035001,-373.43730208,0.00021917,2]
[361906159,1747881035011,-473.33947872,0.00021917,2]
[361906160,1747881035021,-474.85745367,0.00021917,2]
[361906161,1747881035034,-431.29382895,0.00021917,2]
[361906162,1747881035044,-199.97642395,0.00021917,2]
[361906163,1747881035054,-301.57788311,0.00021917,2]
[361906164,1747881035064,-430.0,0.00021917,2]
[361906165,1747881035074,-430.0,0.00021917,2]
[361906166,1747881035084,-430.0,0.00021917,2]
[361906167,1747881035093,-430.0,0.00021917,2]
[361906168,1747881035104,-430.0,0.00021917,2]
[361906169,1747881035114,-430.0,0.00021917,2]
[361906170,1747881035123,-402.81718377,0.00021917,2]
[361906171,1747881035133,-430.0,0.00021917,2]
[361906172,1747881035143,-534.03246417,0.00021917,2]
[361906173,1747881035153,-543.8942682,0.00021917,2]
[361906174,1747881035164,-430.0,0.00021917,2]
[361906175,1747881035173,-430.0,0.00021917,2]
[361906176,1747881035183,-483.66,0.00021917,2]
[361906177,1747881035193,-430.0,0.00021917,2]
[361906178,1747881035202,-430.0,0.00021917,2]
[361906179,1747881035212,-430.0,0.00021917,2]
[361906180,1747881035221,-430.0,0.00021917,2]
[361906181,1747881035231,-271.39720428,0.00021917,2]
[361906182,1747881035241,-430.0,0.00021917,2]
[361906183,1747881035250,-430.0,0.00021917,2]
[361906184,1747881035260,-430.0,0.00021917,2]
[361906185,1747881035270,-430.0,0.00021917,2]
[361906186,1747881035282,-430.0,0.00021917,2]
[361906187,1747881035291,-430.0,0.00021917,2]
[361906188,1747881035300,-430.0,0.00021917,2]
[361906189,1747881035310,-430.0,0.00021917,2]
[361906190,1747881035319,-430.0,0.00021917,2]
[361906191,1747881035330,-430.0,0.00021917,2]
[361906192,1747881035339,-479.76070028,0.00021917,2]
[361906193,1747881035348,-961.73,0.00021917,2]
[361906194,1747881035357,-430.0,0.00021917,2]
[361906195,1747881035367,-430.0,0.00021917,2]
[361906196,1747881035376,-430.0,0.00021917,2]
[361906197,1747881035386,-1398.21,0.00021917,2]
[361906198,1747881035395,-429.08629935,0.00021917,2]
[361906199,1747881035405,-430.0,0.00021917,2]
[361906200,1747881035414,-430.0,0.00021917,2]
[361906201,1747881035424,-430.0,0.00021917,2]
[361906202,1747881035434,-430.0,0.00021917,2]
[361906203,1747881035444,-430.0,0.00021917,2]
[361906204,1747881035454,-1170.48,0.00021917,2]
[361906205,1747881035463,-430.0,0.00021917,2]
[361906206,1747881035473,-430.0,0.00021917,2]
[361906207,1747881035482,-430.0,0.00021917,2]
[361906208,1747881035492,-430.0,0.00021917,2]
[361906209,1747881035501,-430.0,0.00021917,2]
[361906210,1747881035510,-430.0,0.00021917,2]
[361906211,1747881035519,-430.0,0.00021917,2]
[361906212,1747881035531,-430.0,0.00021917,2]
[361906213,1747881035540,-430.0,0.00021917,2]
[361906214,1747881035550,-503.31751297,0.00021917,2]
[361906215,1747881035559,-430.0,0.00021917,2]
[361906216,1747881035569,-430.0,0.00021917,2]
[361906217,1747881035578,-332.97072008,0.00021917,2]
[361906218,1747881035588,-539.27330396,0.00021917,2]
[361906219,1747881035597,-430.0,0.00021917,2]
[361906220,1747881035607,-430.0,0.00021917,2]
[361906221,1747881035617,-430.0,0.00021917,2]
[361906222,1747881035629,-430.0,0.00021917,2]
[361906223,1747881035639,-430.0,0.00021917,2]
[361906224,1747881035648,-430.0,0.00021917,2]
[361906225,1747881035658,-430.0,0.00021917,2]
[361906226,1747881035667,-861.58,0.00021917,2]
[361906227,1747881035676,-430.0,0.00021917,2]
[361906228,1747881035686,-546.25,0.00021917,2]
[361906229,1747881035696,-1148.21,0.00021917,2]
[361906230,1747881035813,-430.0,0.00021917,2]
[361906231,1747881035824,-430.0,0.00021917,2]
[361906232,1747881035834,-430.0,0.00021917,2]
[361906233,1747881035844,-430.0,0.00021917,2]
[361906234,1747881035854,-304.14867402,0.00021917,2]
[361906235,1747881035863,-430.0,0.00021917,2]
[361906236,1747881035872,-430.0,0.00021917,2]
[361906237,1747881035882,-430.0,0.00021917,2]
[361906238,1747881035892,-430.0,0.00021917,2]
[361906239,1747881035902,-430.0,0.00021917,2]
[361906240,1747881035912,-209.30534601,0.00021917,2]
[361906241,1747881035922,-430.0,0.00021917,2]
[361906242,1747881035931,-430.0,0.00021917,2]
[361906243,1747881035942,-430.0,0.00021917,2]
[361906244,1747881035951,-430.0,0.00021917,2]
[361906245,1747881035961,-474.48,0.00021917,2]
[361906246,1747881035970,-430.0,0.00021917,2]
[361906247,1747881035980,-430.0,0.00021917,2]